[Event "7th Iberoamerican-ch 2019"]
[Site "Linares"]
[Date "2019.08.18"]
[Round "9.13"]
[White "Salinas Herrera, Pablo"]
[Black "Cruz Ravina, Francisco Javier"]
[Result "1/2-1/2"]
[ECO "A48"]
[WhiteElo "2506"]
[BlackElo "2366"]
[Annotator "ChessBase"]
[PlyCount "190"]
[EventDate "2019.08.10"]
[EventType "swiss"]
[EventCountry "ESP"]
[SourceTitle "playchess.com"]
[Source "ChessBase"]
[SourceQuality "1"]
[TimeControl "5400+30"]

1. Nf3 {[%emt 0:10:33]} Nf6 {[%emt 0:00:21]} 2. d4 {[%emt 0:00:04]} g6 {[%emt 0:00:57]} 3. Nbd2 {[%emt 0:00:07]} Bg7 {[%emt 0:02:29]} 4. e4 {[%emt 0:00:06]} d6 {[%emt 0:00:20]} 5. Bb5+ {[%emt 0:00:04]} c6 {[%emt 0:01:39]} 6. Bd3 {[%emt 0:00:05]} Qc7 {[%emt 0:01:36]} 7. O-O {[%emt 0:00:05]} O-O {[%emt 0:00:54]} 8. c3 {[%emt 0:00:02]} e5 {[%emt 0:03:23]} 9. Re1 {[%emt 0:00:04]} Bg4 {[%emt 0:03:53]} 10. h3 {[%emt 0:00:07]} Bxf3 {[%emt 0:00:52]} 11. Nxf3 {[%emt 0:00:04]} Nbd7 {[%emt 0:00:38]} 12. a3 {[%emt 0:07:50]} Rfe8 {[%emt 0:03:49]} 13. dxe5 {[%emt 0:04:01]} dxe5 {[%emt 0:02:34]} 14. b4 {[%emt 0:00:05]} c5 {[%emt 0:05:57]} 15. Qe2 {[%emt 0:01:12]} Rac8 {[%emt 0:09:14]} 16. Be3 {[%emt 0:10:08]} Red8 {[%emt 0:08:29]} 17. Rec1 {[%emt 0:06:00]} c4 {[%emt 0:06:13]} 18. Bc2 {[%emt 0:00:37]} Nf8 {[%emt 0:02:25]} 19. a4 {[%emt 0:00:28]} b6 {[%emt 0:05:58]} 20. Rd1 {[%emt 0:02:23]} Ne6 {[%emt 0:00:54]} 21. g3 {[%emt 0:08:28]} a6 {[%emt 0:07:04]} 22. Rxd8+ {[%emt 0:01:43]} Nxd8 {[%emt 0:03:47]} 23. a5 {[%emt 0:01:37]} b5 {[%emt 0:00:23]} 24. Rd1 {[%emt 0:00:03]} Nc6 {[%emt 0:03:18]} 25. Bb6 {[%emt 0:00:17]} Qe7 {[%emt 0:00:27]} 26. Qd2 {[%emt 0:00:42]} Bf8 {[%emt 0:01:19]} 27. Nh2 {[%emt 0:09:15]} Qe6 {[%emt 0:03:42]} 28. Kg2 {[%emt 0:00:16]} Re8 {[%emt 0:00:43]} 29. Qe2 {[%emt 0:00:41]} Re7 {[%emt 0:01:59]} 30. Ng4 {[%emt 0:03:27]} Nxg4 {[%emt 0:01:16]} 31. Qxg4 {[%emt 0:00:04]} Qxg4 {[%emt 0:04:43]} 32. hxg4 {[%emt 0:00:08]} g5 {[%emt 0:01:11]} 33. Be3 {[%emt 0:06:44]} h6 {[%emt 0:00:48]} 34. Rd5 {[%emt 0:00:37]} Kg7 {[%emt 0:02:10]} 35. f4 {[%emt 0:00:58]} f6 {[%emt 0:00:39]} 36. Bc5 {[%emt 0:00:29]} Rc7 {[%emt 0:01:03]} 37. Bb6 {[%emt 0:00:19]} Rb7 {[%emt 0:00:38]} 38. Rd1 {[%emt 0:07:28]} Kf7 {[%emt 0:02:04]} 39. Be3 {[%emt 0:00:39]} Ke6 {[%emt 0:00:28]} 40. Kf3 {[%emt 0:01:53]} Rc7 {[%emt 0:03:56]} 41. Ke2 {[%emt 0:00:15]} Rb7 {[%emt 0:00:23]} 42. Rf1 {[%emt 0:00:18]} Rb8 {[%emt 0:01:04]} 43. Bb6 {[%emt 0:00:13]} Bd6 {[%emt 0:01:07]} 44. Rh1 {[%emt 0:01:26]} Rh8 {[%emt 0:01:21]} 45. fxg5 {[%emt 0:01:49]} fxg5 {[%emt 0:00:07]} 46. Be3 {[%emt 0:00:01]} Be7 {[%emt 0:00:08]} 47. Bb1 {[%emt 0:00:02]} Nb8 {[%emt 0:00:21]} 48. Ba2 {[%emt 0:00:15]} Nd7 {[%emt 0:00:06]} 49. Bb1 {[%emt 0:00:54]} Rh7 {[%emt 0:00:41]} 50. Bc2 {[%emt 0:00:19]} Nf6 {[%emt 0:00:15]} 51. Kf3 {[%emt 0:00:10]} Bf8 {[%emt 0:00:24]} 52. Bb6 {[%emt 0:02:31]} Rf7 {[%emt 0:00:27]} 53. Ke2 {[%emt 0:04:19]} Rd7 {[%emt 0:01:02]} 54. Rf1 {[%emt 0:05:09]} Rf7 {[%emt 0:00:20]} 55. Rd1 {[%emt 0:03:04]} Rd7 {[%emt 0:00:11]} 56. Rf1 {[%emt 0:00:29]} Rf7 {[%emt 0:00:05]} 57. Ke1 {[%emt 0:01:12]} Nd7 {[%emt 0:00:41]} 58. Bf2 {[%emt 0:01:18]} Rf3 {[%emt 0:00:21]} 59. Kd2 {[%emt 0:04:30]} Nf6 {[%emt 0:00:38]} 60. Bd1 {[%emt 0:00:18]} Nxe4+ {[%emt 0:01:45]} 61. Ke2 {[%emt 0:00:00]} Rxf2+ {[%emt 0:03:04]} 62. Rxf2 {[%emt 0:00:04]} Nxf2 {[%emt 0:00:05]} 63. Kxf2 {[%emt 0:00:02]} e4 {[%emt 0:00:32]} 64. Bc2 {[%emt 0:00:48]} Bg7 {[%emt 0:00:30]} 65. Bxe4 {[%emt 0:00:03]} Bxc3 {[%emt 0:00:06]} 66. Bb7 {[%emt 0:00:02]} Kd6 {[%emt 0:00:37]} 67. Bxa6 {[%emt 0:00:03]} Kc6 {[%emt 0:00:05]} 68. Bc8 {[%emt 0:00:04]} Bxb4 {[%emt 0:00:05]} 69. a6 {[%emt 0:00:03]} Bc5+ {[%emt 0:00:33]} 70. Ke2 {[%emt 0:00:00]} Bb6 {[%emt 0:01:33]} 71. Kd2 {[%emt 0:01:28]} Kc5 {[%emt 0:00:36]} 72. Be6 {[%emt 0:00:15]} Kb4 {[%emt 0:01:03]} 73. Kc2 {[%emt 0:00:38]} Ka5 {[%emt 0:00:15]} 74. Bc8 {[%emt 0:00:04]} b4 {[%emt 0:00:17]} 75. Be6 {[%emt 0:00:04]} Kb5 {[%emt 0:00:05]} 76. Kd2 {[%emt 0:01:31]} Bd4 {[%emt 0:00:06]} 77. Bf7 {[%emt 0:00:07]} Bb6 {[%emt 0:02:01]} 78. Be6 {[%emt 0:00:05]} Kc5 {[%emt 0:00:26]} 79. Kc2 {[%emt 0:00:23]} Kd4 {[%emt 0:00:10]} 80. Bf7 {[%emt 0:00:05]} b3+ {[%emt 0:00:33]} 81. Kb2 {[%emt 0:00:03]} Kd3 {[%emt 0:00:30]} 82. Bg6+ {[%emt 0:04:33]} Kd2 {[%emt 0:00:24]} 83. Bf5 {[%emt 0:00:18]} Bd4+ {[%emt 0:00:32]} 84. Ka3 {[%emt 0:00:02]} Kc1 {[%emt 0:00:19]} 85. Kb4 {[%emt 0:01:46]} b2 {[%emt 0:00:37]} 86. Kxc4 {[%emt 0:00:03]} Ba7 {[%emt 0:00:44]} 87. Kd5 {[%emt 0:00:04]} b1=Q {[%emt 0:00:56]} 88. Bxb1 {[%emt 0:00:04]} Kxb1 {[%emt 0:00:04]} 89. Ke6 {[%emt 0:00:03]} Kc2 {[%emt 0:00:28]} 90. Kf6 {[%emt 0:00:14]} Kd3 {[%emt 0:00:24]} 91. Kg6 {[%emt 0:00:04]} Ke4 {[%emt 0:00:21]} 92. Kxh6 {[%emt 0:00:02]} Be3 {[%emt 0:00:20]} 93. a7 {[%emt 0:00:32]} Bxa7 {[%emt 0:00:05]} 94. Kxg5 {[%emt 0:00:03]} Kf3 {[%emt 0:00:27]} 95. Kf5 {[%emt 0:00:05]} Bd4 {[%emt 0:00:12] Ke5 Ke4+} 1/2-1/2

[Event "7th Iberoamerican-ch 2019"]
[Site "Linares"]
[Date "2019.08.18"]
[Round "9.14"]
[White "Matnadze, Ana"]
[Black "Matamoros Franco, Carlos S."]
[Result "1/2-1/2"]
[ECO "A49"]
[WhiteElo "2363"]
[BlackElo "2498"]
[Annotator "ChessBase"]
[PlyCount "26"]
[EventDate "2019.08.10"]
[EventType "swiss"]
[EventCountry "ESP"]
[SourceTitle "playchess.com"]
[Source "ChessBase"]
[SourceQuality "1"]
[TimeControl "5400+30"]

1. d4 {[%emt 0:00:00]} Nf6 {[%emt 0:00:00]} 2. Nf3 {[%emt 0:00:00]} g6 {[%emt 0:00:34]} 3. g3 {[%emt 0:00:09]} b6 {[%emt 0:00:55]} 4. Bg2 {[%emt 0:00:26]} Bb7 {[%emt 0:00:04]} 5. O-O {[%emt 0:01:04]} Bg7 {[%emt 0:00:29]} 6. c4 {[%emt 0:01:05]} O-O {[%emt 0:00:41]} 7. b3 {[%emt 0:01:29]} c5 {[%emt 0:03:21]} 8. Bb2 {[%emt 0:01:44]} cxd4 {[%emt 0:02:13]} 9. Nxd4 {[%emt 0:03:18]} Bxg2 {[%emt 0:00:27]} 10. Kxg2 {[%emt 0:00:05]} Qc7 {[%emt 0:00:54]} 11. Nc3 {[%emt 0:04:57]} Qb7+ {[%emt 0:01:49]} 12. Nf3 {[%emt 0:04:30]} d6 {[%emt 0:00:54]} 13. Nd5 {[%emt 0:02:44]} Nxd5 {[%emt 0:01:55]} 1/2-1/2

[Event "7th Iberoamerican-ch 2019"]
[Site "Linares"]
[Date "2019.08.18"]
[Round "9.15"]
[White "Espinosa Aranda, Angel"]
[Black "Aizpurua, Patrick"]
[Result "1-0"]
[ECO "A46"]
[WhiteElo "2497"]
[BlackElo "2261"]
[Annotator "ChessBase"]
[PlyCount "105"]
[EventDate "2019.08.10"]
[EventType "swiss"]
[EventCountry "ESP"]
[SourceTitle "playchess.com"]
[Source "ChessBase"]
[SourceQuality "1"]
[TimeControl "5400+30"]

1. d4 {[%emt 0:00:00]} Nf6 {[%emt 0:00:00]} 2. Nf3 {[%emt 0:00:00]} e6 {[%emt 0:00:00]} 3. e3 {[%emt 0:00:28]} b6 {[%emt 0:01:05]} 4. Bd3 {[%emt 0:00:26]} Bb7 {[%emt 0:00:08]} 5. O-O {[%emt 0:00:16]} Be7 {[%emt 0:02:42]} 6. c4 {[%emt 0:00:20]} c5 {[%emt 0:02:07]} 7. Nc3 {[%emt 0:02:26]} O-O {[%emt 0:07:28]} 8. d5 {[%emt 0:00:06]} exd5 {[%emt 0:09:55]} 9. cxd5 {[%emt 0:00:06]} d6 {[%emt 0:04:38]} 10. e4 {[%emt 0:00:04]} a6 {[%emt 0:00:44]} 11. a4 {[%emt 0:00:03]} Nbd7 {[%emt 0:00:32]} 12. h3 {[%emt 0:03:45]} Ne8 {[%emt 0:04:19]} 13. Bf4 {[%emt 0:03:02]} Bf6 {[%emt 0:01:24]} 14. Nd2 {[%emt 0:03:03]} Ne5 {[%emt 0:05:51]} 15. Be2 {[%emt 0:00:29]} Rb8 {[%emt 0:11:34]} 16. Bh2 {[%emt 0:01:52]} Nc7 {[%emt 0:03:10]} 17. f4 {[%emt 0:09:35]} Ng6 {[%emt 0:00:08]} 18. Nf3 {[%emt 0:00:06]} Re8 {[%emt 0:02:48]} 19. e5 {[%emt 0:01:54]} dxe5 {[%emt 0:01:57]} 20. d6 {[%emt 0:00:04]} Ne6 {[%emt 0:05:00]} 21. f5 {[%emt 0:06:35]} Nd4 {[%emt 0:01:08]} 22. fxg6 {[%emt 0:00:06]} hxg6 {[%emt 0:00:06]} 23. Bc4 {[%emt 0:00:46]} Qxd6 {[%emt 0:05:16]} 24. Nd2 {[%emt 0:01:25]} b5 {[%emt 0:02:58]} 25. axb5 {[%emt 0:04:07]} axb5 {[%emt 0:00:06]} 26. Nde4 {[%emt 0:00:32]} Bxe4 {[%emt 0:05:30]} 27. Nxe4 {[%emt 0:00:08]} Qc6 {[%emt 0:00:13]} 28. Rxf6 {[%emt 0:21:25]} gxf6 {[%emt 0:00:27]} 29. Bd5 {[%emt 0:00:04]} Qb6 {[%emt 0:00:22]} 30. Qf1 {[%emt 0:01:11]} f5 {[%emt 0:07:08]} 31. Ng5 {[%emt 0:00:13]} Re7 {[%emt 0:00:41]} 32. Qf2 {[%emt 0:01:13]} Kg7 {[%emt 0:02:53]} 33. Nxf7 {[%emt 0:00:35]} f4 {[%emt 0:07:06]} 34. Ng5 {[%emt 0:03:56]} c4 {[%emt 0:00:57]} 35. Kh1 {[%emt 0:00:44]} Nb3 {[%emt 0:00:57]} 36. Ne6+ {[%emt 0:03:30]} Rxe6 {[%emt 0:00:14]} 37. Ra7+ {[%emt 0:00:04]} Kf8 {[%emt 0:05:45]} 38. Qh4 {[%emt 0:00:04]} Qxa7 {[%emt 0:00:17]} 39. Qh8+ {[%emt 0:00:05]} Ke7 {[%emt 0:00:05]} 40. Qg7+ {[%emt 0:00:04]} Kd6 {[%emt 0:00:07]} 41. Qxa7 {[%emt 0:00:03]} Kxd5 {[%emt 0:01:21]} 42. Qxb8 {[%emt 0:00:05]} Nd4 {[%emt 0:00:04]} 43. Bg1 {[%emt 0:00:22]} Rd6 {[%emt 0:01:21]} 44. Qb7+ {[%emt 0:00:07]} Ke6 {[%emt 0:00:32]} 45. Bxd4 {[%emt 0:03:45]} Rxd4 {[%emt 0:00:08]} 46. Qxb5 {[%emt 0:00:05]} Kf6 {[%emt 0:01:01]} 47. Kg1 {[%emt 0:00:38]} g5 {[%emt 0:00:35]} 48. Qb4 {[%emt 0:00:41]} Kf5 {[%emt 0:00:38]} 49. Kf2 {[%emt 0:00:06]} Rd3 {[%emt 0:00:29]} 50. Qxc4 {[%emt 0:00:18]} Rd2+ {[%emt 0:00:05]} 51. Kf3 {[%emt 0:00:05]} g4+ {[%emt 0:00:56]} 52. hxg4+ {[%emt 0:00:04]} Kg5 {[%emt 0:00:03]} 53. Qg8+ {[%emt 0:00:10]} 1-0

[Event "7th Iberoamerican-ch 2019"]
[Site "Linares"]
[Date "2019.08.18"]
[Round "9.16"]
[White "Moreno Ruiz, Javier"]
[Black "Teran Alvarez, Ismael"]
[Result "1-0"]
[ECO "D31"]
[WhiteElo "2473"]
[BlackElo "2392"]
[Annotator "ChessBase"]
[PlyCount "103"]
[EventDate "2019.08.10"]
[EventType "swiss"]
[EventCountry "ESP"]
[SourceTitle "playchess.com"]
[Source "ChessBase"]
[SourceQuality "1"]
[TimeControl "5400+30"]

1. d4 {[%emt 0:00:00]} d5 {[%emt 0:00:00]} 2. c4 {[%emt 0:00:00]} e6 {[%emt 0:00:00]} 3. Nc3 {[%emt 0:00:00]} Be7 {[%emt 0:00:00]} 4. cxd5 {[%emt 0:00:07]} exd5 {[%emt 0:00:02]} 5. Bf4 {[%emt 0:00:09]} c6 {[%emt 0:00:03]} 6. e3 {[%emt 0:02:16]} Bf5 {[%emt 0:00:29]} 7. g4 {[%emt 0:04:03]} Be6 {[%emt 0:01:16]} 8. h4 {[%emt 0:01:17]} Qb6 {[%emt 0:10:02]} 9. Rb1 {[%emt 0:02:51]} Qd8 {[%emt 0:06:30]} 10. Bd3 {[%emt 0:06:10]} Bd6 {[%emt 0:00:48]} 11. Nh3 {[%emt 0:09:50]} h5 {[%emt 0:05:53]} 12. gxh5 {[%emt 0:07:09]} Bxh3 {[%emt 0:13:01]} 13. Bxd6 {[%emt 0:00:41]} Qxd6 {[%emt 0:00:06]} 14. Rxh3 {[%emt 0:00:07]} Nf6 {[%emt 0:07:28]} 15. Be2 {[%emt 0:00:29]} Nbd7 {[%emt 0:01:34]} 16. Rg3 {[%emt 0:00:44]} O-O-O {[%emt 0:02:26]} 17. Kd2 {[%emt 0:16:17]} g6 {[%emt 0:10:26]} 18. hxg6 {[%emt 0:01:16]} fxg6 {[%emt 0:00:09]} 19. Qa4 {[%emt 0:09:26]} Kb8 {[%emt 0:04:04]} 20. Rh1 {[%emt 0:01:58]} b5 {[%emt 0:11:03]} 21. Qb3 {[%emt 0:01:37]} Nb6 {[%emt 0:01:02]} 22. Kc1 {[%emt 0:02:08]} Rh6 {[%emt 0:03:40]} 23. Bd3 {[%emt 0:04:29]} Rdh8 {[%emt 0:02:24]} 24. Rxg6 {[%emt 0:02:13]} Rxg6 {[%emt 0:04:35]} 25. Bxg6 {[%emt 0:00:06]} Ng4 {[%emt 0:00:03]} 26. Qc2 {[%emt 0:09:21]} Nxf2 {[%emt 0:00:14]} 27. Rg1 {[%emt 0:04:59]} Nh3 {[%emt 0:02:59]} 28. Rh1 {[%emt 0:04:04]} Nf2 {[%emt 0:00:28]} 29. Rg1 {[%emt 0:00:34]} Nh3 {[%emt 0:00:14]} 30. Rg4 {[%emt 0:00:42]} Rf8 {[%emt 0:06:44]} 31. Qg2 {[%emt 0:00:19]} Nf2 {[%emt 0:02:34]} 32. Qg3 {[%emt 0:00:19]} Nc4 {[%emt 0:02:51]} 33. Qxd6+ {[%emt 0:01:30]} Nxd6 {[%emt 0:00:02]} 34. Rf4 {[%emt 0:00:41]} Rg8 {[%emt 0:02:30]} 35. h5 {[%emt 0:01:25]} Nh3 {[%emt 0:00:28]} 36. Rf6 {[%emt 0:00:18]} Kc7 {[%emt 0:00:01]} 37. Kc2 {[%emt 0:01:06]} Kd7 {[%emt 0:00:48]} 38. Kd3 {[%emt 0:01:19]} Ke7 {[%emt 0:00:33]} 39. Rf1 {[%emt 0:00:27]} Ng5 {[%emt 0:00:38]} 40. b3 {[%emt 0:01:25]} Ne6 {[%emt 0:01:00]} 41. Ne2 {[%emt 0:04:00]} Rf8 {[%emt 0:00:39]} 42. Nf4 {[%emt 0:01:01]} b4 {[%emt 0:00:38]} 43. Ke2 {[%emt 0:02:01]} Ng5 {[%emt 0:00:30]} 44. Rg1 {[%emt 0:00:24]} Ne6 {[%emt 0:00:31]} 45. Nxe6 {[%emt 0:00:12]} Kxe6 {[%emt 0:00:02]} 46. Bd3 {[%emt 0:00:38]} a5 {[%emt 0:00:33]} 47. h6 {[%emt 0:00:15]} Rf6 {[%emt 0:00:34]} 48. Rh1 {[%emt 0:00:28]} Nf7 {[%emt 0:00:36]} 49. h7 {[%emt 0:00:07]} Nh8 {[%emt 0:00:05]} 50. e4 {[%emt 0:00:19]} dxe4 {[%emt 0:00:28]} 51. Bxe4 {[%emt 0:00:05]} Kd6 {[%emt 0:00:37]} 52. Rh5 {[%emt 0:00:21]} 1-0

[Event "7th Iberoamerican-ch 2019"]
[Site "Linares"]
[Date "2019.08.18"]
[Round "9.17"]
[White "Guerrero Vargas, Andres Jesus"]
[Black "Del Rio De Angelis, Salvador G."]
[Result "0-1"]
[ECO "B01"]
[WhiteElo "2342"]
[BlackElo "2472"]
[Annotator "ChessBase"]
[PlyCount "58"]
[EventDate "2019.08.10"]
[EventType "swiss"]
[EventCountry "ESP"]
[SourceTitle "playchess.com"]
[Source "ChessBase"]
[SourceQuality "1"]
[TimeControl "5400+30"]

1. e4 {[%emt 0:01:56]} d5 {[%emt 0:00:00]} 2. exd5 {[%emt 0:00:04]} Nf6 {[%emt 0:00:00]} 3. Bb5+ {[%emt 0:00:18]} Bd7 {[%emt 0:00:00]} 4. Be2 {[%emt 0:00:05]} Nxd5 {[%emt 0:00:00]} 5. d4 {[%emt 0:00:07]} e6 {[%emt 0:00:04]} 6. Nf3 {[%emt 0:03:46]} c5 {[%emt 0:00:32]} 7. c4 {[%emt 0:13:54]} Nf6 {[%emt 0:00:10]} 8. dxc5 {[%emt 0:05:34]} Bxc5 {[%emt 0:00:16]} 9. O-O {[%emt 0:01:24]} Qc7 {[%emt 0:01:07]} 10. a3 {[%emt 0:02:14]} a5 {[%emt 0:02:56]} 11. Nc3 {[%emt 0:09:57]} O-O {[%emt 0:04:12]} 12. Na4 {[%emt 0:06:24]} Ba7 {[%emt 0:02:31]} 13. c5 {[%emt 0:12:10]} Na6 {[%emt 0:03:33]} 14. Bxa6 {[%emt 0:01:00]} bxa6 {[%emt 0:00:06]} 15. Bg5 {[%emt 0:05:03]} Nd5 {[%emt 0:14:09]} 16. Rc1 {[%emt 0:00:08]} Rfc8 {[%emt 0:03:13]} 17. Nd2 {[%emt 0:07:56]} h6 {[%emt 0:03:07]} 18. Bh4 {[%emt 0:00:13]} Bxa4 {[%emt 0:00:12]} 19. Qxa4 {[%emt 0:00:07]} Qf4 {[%emt 0:00:03]} 20. Qxf4 {[%emt 0:01:44]} Nxf4 {[%emt 0:00:06]} 21. Rc4 {[%emt 0:02:08]} Ne2+ {[%emt 0:04:26]} 22. Kh1 {[%emt 0:00:01]} Rxc5 {[%emt 0:00:13]} 23. Re4 {[%emt 0:06:21]} Nc1 {[%emt 0:00:10]} 24. Rd4 {[%emt 0:06:21]} Rac8 {[%emt 0:03:13]} 25. Rd7 {[%emt 0:03:27]} R5c7 {[%emt 0:01:09]} 26. Rd6 {[%emt 0:00:02]} Rc6 {[%emt 0:01:46]} 27. Rd7 {[%emt 0:00:01]} Bb8 {[%emt 0:01:03]} 28. Bg3 {[%emt 0:03:55]} Ne2 {[%emt 0:01:50]} 29. Rb7 {[%emt 0:03:36]} e5 {[%emt 0:01:54]} 0-1

[Event "7th Iberoamerican-ch 2019"]
[Site "Linares"]
[Date "2019.08.18"]
[Round "9.18"]
[White "Garcia, Jhoel"]
[Black "Ladron De Guevara Pinto, Paolo"]
[Result "0-1"]
[ECO "C78"]
[WhiteElo "2290"]
[BlackElo "2431"]
[Annotator "NA"]
[PlyCount "100"]
[EventDate "2019.08.10"]
[EventType "swiss"]
[EventCountry "ESP"]
[SourceTitle "playchess.com"]
[Source "ChessBase"]
[SourceQuality "1"]
[TimeControl "5400+30"]

1. e4 {[%emt 0:03:36]} e5 {[%emt 0:00:18]} 2. Nf3 {[%emt 0:00:28]} Nc6 {[%emt 0:00:06]} 3. Bb5 {[%emt 0:02:13]} a6 {[%emt 0:00:05]} 4. Ba4 {[%emt 0:00:38]} Nf6 {[%emt 0:00:06]} 5. O-O {[%emt 0:00:25]} b5 {[%emt 0:00:02]} 6. Bb3 {[%emt 0:00:06]} Bb7 {[%emt 0:00:04]} 7. Re1 {[%emt 0:01:34]} Bc5 {[%emt 0:03:00]} 8. c3 {[%emt 0:00:52]} d6 {[%emt 0:00:56]} 9. d4 {[%emt 0:01:02]} Bb6 {[%emt 0:00:06]} 10. a4 {[%emt 0:14:15]} h6 {[%emt 0:01:21]} 11. Na3 O-O {[%emt 0:00:25]} 12. d5 {[%emt 0:12:11]} Ne7 {[%emt 0:02:04]} 13. Be3 {[%emt 0:00:49]} Bxe3 {[%emt 0:11:53]} 14. Rxe3 {[%emt 0:00:06]} Ng4 {[%emt 0:00:03]} 15. Re1 {[%emt 0:00:35]} bxa4 {[%emt 0:01:01]} 16. Bc2 {[%emt 0:02:23]} f5 {[%emt 0:00:49]} 17. exf5 {[%emt 0:23:32]} Nxd5 {[%emt 0:02:26]} 18. Nc4 {[%emt 0:04:30]} Rb8 {[%emt 0:03:14]} 19. Rxa4 {[%emt 0:00:55]} Nf4 {[%emt 0:03:21]} 20. Ne3 {[%emt 0:15:44]} Nf6 {[%emt 0:09:25]} 21. h3 {[%emt 0:03:23]} Nd7 {[%emt 0:03:38]} 22. Kh2 {[%emt 0:02:45]} Nc5 {[%emt 0:01:23]} 23. Rc4 {[%emt 0:00:32]} e4 {[%emt 0:03:42]} 24. Nd4 {[%emt 0:05:22]} Qf6 {[%emt 0:04:27]} 25. Qg4 {[%emt 0:02:15]} Nfd3 {[%emt 0:00:19]} 26. Bxd3 {[%emt 0:02:05]} Nxd3 {[%emt 0:00:04]} 27. Qg3 {[%emt 0:00:37]} h5 {[%emt 0:02:10]} 28. Re2 {[%emt 0:00:36]} Ne5 {[%emt 0:02:30]} 29. Rxc7 {[%emt 0:00:30]} h4 {[%emt 0:00:05]} 30. Qf4 {[%emt 0:00:06]} g5 {[%emt 0:00:07]} 31. Ng4 {[%emt 0:00:08]} gxf4 {[%emt 0:00:05]} 32. Nxf6+ {[%emt 0:00:22]} Rxf6 {[%emt 0:00:06]} 33. Ne6 {[%emt 0:00:43]} Rxf5 {[%emt 0:00:50]} 34. Rd2 {[%emt 0:00:36]} Nf7 {[%emt 0:01:47]} 35. Nd4 {[%emt 0:00:45]} Rf6 {[%emt 0:01:01]} 36. b4 {[%emt 0:00:46]} Ne5 {[%emt 0:00:54]} 37. Rd1 {[%emt 0:00:27]} e3 {[%emt 0:00:46]} 38. Rf1 {[%emt 0:00:30]} Rg6 {[%emt 0:01:59]} 39. f3 {[%emt 0:00:06]} Rf6 {[%emt 0:10:11]} 40. Rd1 {[%emt 0:00:28]} Rf7 {[%emt 0:02:25]} 41. Rxf7 {[%emt 0:00:28]} Kxf7 {[%emt 0:00:59]} 42. Ne2 {[%emt 0:00:08]} Ke7 {[%emt 0:00:08]} 43. Nxf4 {[%emt 0:00:13]} Rc8 {[%emt 0:00:03]} 44. Ne2 {[%emt 0:00:25]} Bc6 {[%emt 0:02:15]} 45. f4 {[%emt 0:00:35]} Rg8 {[%emt 0:00:24]} 46. Rg1 {[%emt 0:01:02]} Rxg2+ {[%emt 0:01:07]} 47. Rxg2 {[%emt 0:00:05]} Nf3+ {[%emt 0:00:03]} 48. Kh1 {[%emt 0:00:04]} Ne1 {[%emt 0:00:04]} 49. Nd4 {[%emt 0:00:19]} Bxg2+ {[%emt 0:00:11]} 50. Kh2 {[%emt 0:00:11]} Be4 {[%emt 0:00:07]} 0-1

[Event "7th Iberoamerican-ch 2019"]
[Site "Linares"]
[Date "2019.08.18"]
[Round "9.19"]
[White "Almagro Mazariegos, Sebastian"]
[Black "Gines Esteo, Pedro Antonio"]
[Result "1-0"]
[ECO "B01"]
[WhiteElo "2268"]
[BlackElo "2417"]
[Annotator "NA"]
[PlyCount "127"]
[EventDate "2019.08.10"]
[EventType "swiss"]
[EventCountry "ESP"]
[SourceTitle "playchess.com"]
[Source "ChessBase"]
[SourceQuality "1"]
[TimeControl "5400+30"]

1. e4 {[%emt 0:04:20]} c6 {[%emt 0:00:00]} 2. c4 {[%emt 0:00:18]} d5 {[%emt 0:00:00]} 3. exd5 {[%emt 0:00:16]} Nf6 {[%emt 0:00:00]} 4. Nc3 {[%emt 0:00:12]} cxd5 {[%emt 0:00:00]} 5. cxd5 {[%emt 0:00:05]} Nxd5 {[%emt 0:00:05]} 6. Nf3 {[%emt 0:00:16]} Nc6 {[%emt 0:00:06]} 7. Bc4 {[%emt 0:00:33]} Nb6 {[%emt 0:03:53]} 8. Bb3 {[%emt 0:00:08]} g6 {[%emt 0:03:16]} 9. d4 {[%emt 0:00:47]} Bg7 {[%emt 0:00:08]} 10. d5 {[%emt 0:00:35]} Na5 {[%emt 0:00:19]} 11. O-O {[%emt 0:01:29]} O-O {[%emt 0:05:15]} 12. Re1 {[%emt 0:06:19]} Nxb3 {[%emt 0:13:03]} 13. axb3 {[%emt 0:04:39]} Re8 {[%emt 0:16:43]} 14. Bg5 {[%emt 0:23:03]} f6 {[%emt 0:08:33]} 15. Be3 {[%emt 0:08:29]} e5 {[%emt 0:00:18]} 16. Bc5 {[%emt 0:09:50]} Bf8 {[%emt 0:09:02]} 17. Bxf8 {[%emt 0:04:07]} Rxf8 {[%emt 0:00:08]} 18. h3 {[%emt 0:03:32]} Rf7 {[%emt 0:11:33]} 19. Nh2 {[%emt 0:01:21]} Qd6 {[%emt 0:11:03]} 20. Ra5 {[%emt 0:02:33]} a6 {[%emt 0:03:41]} 21. Ng4 {[%emt 0:03:50]} Bxg4 {[%emt 0:00:44]} 22. Qxg4 {[%emt 0:00:10]} f5 {[%emt 0:03:54]} 23. Qg3 {[%emt 0:01:26]} Re7 {[%emt 0:00:34]} 24. Raa1 {[%emt 0:00:38]} Rd8 {[%emt 0:00:23]} 25. Rad1 {[%emt 0:00:10]} Qf6 {[%emt 0:02:50]} 26. Rd2 {[%emt 0:05:26]} Rd6 {[%emt 0:00:06]} 27. Qe3 {[%emt 0:02:08]} Nd7 {[%emt 0:03:21]} 28. b4 {[%emt 0:03:40]} e4 {[%emt 0:01:51]} 29. f4 {[%emt 0:03:36]} Nb6 {[%emt 0:02:00]} 30. Qc5 {[%emt 0:01:14]} Red7 {[%emt 0:00:51]} 31. b5 {[%emt 0:02:36]} Qh4 {[%emt 0:01:17]} 32. Rf1 {[%emt 0:00:29]} a5 {[%emt 0:00:22]} 33. Kh2 {[%emt 0:01:14]} Qd8 {[%emt 0:00:21]} 34. Rfd1 {[%emt 0:05:17]} Qc7 {[%emt 0:00:41]} 35. Qd4 {[%emt 0:00:30]} Nxd5 {[%emt 0:00:33]} 36. Qe5 {[%emt 0:00:45]} e3 {[%emt 0:00:35]} 37. Nxd5 {[%emt 0:00:28]} Qc5 {[%emt 0:00:26]} 38. Nf6+ {[%emt 0:00:41]} Rxf6 {[%emt 0:00:31]} 39. Qxc5 {[%emt 0:00:12]} Rxd2 {[%emt 0:00:05]} 40. Rxd2 {[%emt 0:00:21]} exd2 {[%emt 0:00:00]} 41. Qd5+ {[%emt 0:00:14]} Kf8 {[%emt 0:00:42]} 42. Qxd2 {[%emt 0:00:10]} b6 {[%emt 0:00:01]} 43. Qd7 {[%emt 0:00:22]} Kg8 {[%emt 0:00:12]} 44. Kg3 {[%emt 0:00:50]} h6 {[%emt 0:01:47]} 45. Kf3 {[%emt 0:00:11]} g5 {[%emt 0:00:26]} 46. Ke3 {[%emt 0:00:44]} Kf8 {[%emt 0:00:11]} 47. Kd4 {[%emt 0:00:56]} gxf4 {[%emt 0:00:05]} 48. Ke5 {[%emt 0:00:14]} Rg6 {[%emt 0:00:01]} 49. Qxf5+ {[%emt 0:00:34]} Kg7 {[%emt 0:00:00]} 50. Qd7+ {[%emt 0:00:29]} Kh8 {[%emt 0:01:01]} 51. Kf5 {[%emt 0:01:18]} Rxg2 {[%emt 0:00:05]} 52. Kxf4 {[%emt 0:00:27]} Rf2+ {[%emt 0:00:36]} 53. Ke5 {[%emt 0:00:46]} Rxb2 {[%emt 0:00:06]} 54. Qd8+ {[%emt 0:00:25]} Kh7 {[%emt 0:00:08]} 55. Qc7+ {[%emt 0:00:21]} Kg6 {[%emt 0:00:44]} 56. Qxb6+ {[%emt 0:00:14]} Kh5 {[%emt 0:00:16]} 57. Qxa5 {[%emt 0:00:14]} Rg2 {[%emt 0:00:13]} 58. Kf4 {[%emt 0:00:18]} Kh4 {[%emt 0:00:09]} 59. b6 {[%emt 0:00:37]} Rf2+ {[%emt 0:01:13]} 60. Ke3 {[%emt 0:00:24]} Rb2 {[%emt 0:00:02]} 61. Qa7 {[%emt 0:01:25]} Rb3+ {[%emt 0:00:55]} 62. Kf4 {[%emt 0:00:31]} Rb4+ {[%emt 0:00:01]} 63. Kf5 {[%emt 0:00:26]} h5 {[%emt 0:00:02]} 64. Qe7+ {[%emt 0:00:15]} 1-0